[Event "Live Chess"]
[Site "Chess.com"]
[Date "2024.06.02"]
[Round "-"]
[White "imchessive"]
[Black "Mangoalo"]
[Result "1-0"]
[WhiteElo "1588"]
[BlackElo "1066"]
[TimeControl "300"]
[EndTime "7:25:42 PDT"]
[Termination "imchessive won by resignation"]

1. d4 {[%clk 0:04:58.9]} 1... Nf6 {[%clk 0:04:58.1]} 2. c4 {[%clk 0:04:58.1]}
2... e6 {[%clk 0:04:58]} 3. Nf3 {[%clk 0:04:57.3]} 3... Bb4+ {[%clk 0:04:57.9]}
4. Nc3 {[%clk 0:04:56.1]} 4... c5 {[%clk 0:04:54]} 5. g3 {[%clk 0:04:52.6]} 5...
cxd4 {[%clk 0:04:50.9]} 6. Nxd4 {[%clk 0:04:50.9]} 6... Nc6 {[%clk 0:04:49]} 7.
Nxc6 {[%clk 0:04:47.8]} 7... bxc6 {[%clk 0:04:48.9]} 8. Bg2 {[%clk 0:04:46.5]}
8... d5 {[%clk 0:04:47.9]} 9. cxd5 {[%clk 0:04:44.7]} 9... cxd5 {[%clk
0:04:47.8]} 10. O-O {[%clk 0:04:43.1]} 10... Ba6 {[%clk 0:04:46]} 11. Bg5 {[%clk
0:04:37]} 11... O-O {[%clk 0:04:44.2]} 12. Rc1 {[%clk 0:04:35.2]} 12... h6
{[%clk 0:04:42.4]} 13. Bf4 {[%clk 0:04:31.4]} 13... Qd7 {[%clk 0:04:39.6]} 14.
a3 {[%clk 0:04:29.3]} 14... Bxc3 {[%clk 0:04:38.3]} 15. Rxc3 {[%clk 0:04:26.8]}
15... Rfc8 {[%clk 0:04:38.2]} 16. Qb3 {[%clk 0:04:19.6]} 16... Rxc3 {[%clk
0:04:22]} 17. bxc3 {[%clk 0:04:17.2]} 17... Bxe2 {[%clk 0:04:18.7]} 18. Rb1
{[%clk 0:04:13]} 18... Bc4 {[%clk 0:04:17.8]} 19. Qb4 {[%clk 0:04:10.5]} 19...
Ne4 {[%clk 0:04:12.8]} 20. Bxe4 {[%clk 0:04:07.7]} 20... dxe4 {[%clk 0:04:12.7]}
21. Qxc4 {[%clk 0:04:04.7]} 21... Qd5 {[%clk 0:04:11.3]} 22. Qxd5 {[%clk
0:04:02.5]} 22... exd5 {[%clk 0:04:11.2]} 1-0

[Event "Live Chess"]
[Site "Chess.com"]
[Date "2024.06.02"]
[Round "-"]
[White "V1nas"]
[Black "juniortay"]
[Result "0-1"]
[WhiteElo "1313"]
[BlackElo "2303"]
[TimeControl "300"]
[EndTime "7:25:43 PDT"]
[Termination "juniortay won by resignation"]

1. d4 {[%clk 0:04:57.6]} 1... Nf6 {[%clk 0:04:57.6]} 2. Nc3 {[%clk 0:04:55]}
2... d5 {[%clk 0:04:56.2]} 3. Bg5 {[%clk 0:04:53]} 3... Nbd7 {[%clk 0:04:54.4]}
4. e3 {[%clk 0:04:48.6]} 4... c6 {[%clk 0:04:52.3]} 5. Bd3 {[%clk 0:04:44.8]}
5... e5 {[%clk 0:04:51]} 6. dxe5 {[%clk 0:04:42.4]} 6... Nxe5 {[%clk 0:04:49.6]}
7. Qe2 {[%clk 0:04:35.9]} 7... Qa5 {[%clk 0:04:44.6]} 8. Bxf6 {[%clk 0:04:29.7]}
8... gxf6 {[%clk 0:04:42.8]} 9. Nf3 {[%clk 0:04:22.9]} 9... Bg4 {[%clk 0:04:41]}
10. h3 {[%clk 0:04:21]} 10... Bxf3 {[%clk 0:04:39.9]} 11. gxf3 {[%clk
0:04:16.9]} 11... Ba3 {[%clk 0:04:38.3]} 12. Rb1 {[%clk 0:04:02]} 12... Bxb2
{[%clk 0:04:35.6]} 13. Bf5 {[%clk 0:03:58.5]} 0-1

[Event "Live Chess"]
[Site "Chess.com"]
[Date "2024.06.02"]
[Round "-"]
[White "NeilDruggan73"]
[Black "seasidecastle27"]
[Result "1-0"]
[WhiteElo "1717"]
[BlackElo "1944"]
[TimeControl "300"]
[EndTime "7:25:54 PDT"]
[Termination "NeilDruggan73 won by checkmate"]

1. d4 {[%clk 0:04:56.9]} 1... e6 {[%clk 0:04:58.9]} 2. Nf3 {[%clk 0:04:54.6]}
2... d5 {[%clk 0:04:57.8]} 3. Bg5 {[%clk 0:04:53.5]} 3... Be7 {[%clk 0:04:56.6]}
4. h4 {[%clk 0:04:48.8]} 4... h6 {[%clk 0:04:54.7]} 5. Bf4 {[%clk 0:04:46.3]}
5... Bd6 {[%clk 0:04:51.4]} 6. Bxd6 {[%clk 0:04:43.9]} 6... Qxd6 {[%clk
0:04:49.7]} 7. e3 {[%clk 0:04:43.6]} 7... Nd7 {[%clk 0:04:47.4]} 8. Bd3 {[%clk
0:04:43.2]} 8... Ngf6 {[%clk 0:04:45.8]} 9. c3 {[%clk 0:04:42]} 9... e5 {[%clk
0:04:44]} 10. dxe5 {[%clk 0:04:40.1]} 10... Nxe5 {[%clk 0:04:42.5]} 11. Nxe5
{[%clk 0:04:39.7]} 11... Qxe5 {[%clk 0:04:41.3]} 12. Nd2 {[%clk 0:04:37.9]}
12... c6 {[%clk 0:04:36.6]} 13. Nf3 {[%clk 0:04:36.3]} 13... Qe7 {[%clk
0:04:34.9]} 14. Qc2 {[%clk 0:04:32]} 14... Bg4 {[%clk 0:04:31.3]} 15. O-O-O
{[%clk 0:04:29.6]} 15... O-O-O {[%clk 0:04:29.6]} 16. Rde1 {[%clk 0:04:27.4]}
16... Kb8 {[%clk 0:04:27.6]} 17. Nd4 {[%clk 0:04:25.5]} 17... Rhe8 {[%clk
0:04:23.1]} 18. f3 {[%clk 0:04:21.8]} 18... Bc8 {[%clk 0:04:20.2]} 19. g4 {[%clk
0:04:19.5]} 19... Qc7 {[%clk 0:04:11.9]} 20. b4 {[%clk 0:03:59.5]} 20... a6
{[%clk 0:04:07]} 21. Kd2 {[%clk 0:03:58.2]} 21... Qg3 {[%clk 0:04:02.2]} 22. h5
{[%clk 0:03:54.5]} 22... Qg2+ {[%clk 0:03:54.5]} 23. Kc1 {[%clk 0:03:49.4]}
23... Qxc2+ {[%clk 0:03:50.3]} 24. Kxc2 {[%clk 0:03:47.3]} 24... Re7 {[%clk
0:03:48.7]} 25. Re2 {[%clk 0:03:41.2]} 25... Rde8 {[%clk 0:03:46.7]} 26. Rhe1
{[%clk 0:03:40.8]} 26... Nd7 {[%clk 0:03:38.3]} 27. Bf5 {[%clk 0:03:39.5]} 27...
Ne5 {[%clk 0:03:36.4]} 28. Bxc8 {[%clk 0:03:36.9]} 28... Kxc8 {[%clk 0:03:35]}
29. Nf5 {[%clk 0:03:30.5]} 29... Rd7 {[%clk 0:03:24.1]} 30. Nd4 {[%clk
0:03:20.5]} 30... f6 {[%clk 0:03:17.9]} 31. e4 {[%clk 0:03:12.8]} 31... Nc4
{[%clk 0:03:04.7]} 32. exd5 {[%clk 0:03:07.6]} 32... Rxe2+ {[%clk 0:03:02.7]}
33. Rxe2 {[%clk 0:03:07.3]} 33... Rxd5 {[%clk 0:02:59.7]} 34. Re8+ {[%clk
0:03:03.4]} 34... Kc7 {[%clk 0:02:57.3]} 35. Re7+ {[%clk 0:03:01]} 35... Rd7
{[%clk 0:02:55.8]} 36. Ne6+ {[%clk 0:02:52.6]} 36... Kd6 {[%clk 0:02:53]} 37.
Rxd7+ {[%clk 0:02:51.6]} 37... Kxd7 {[%clk 0:02:51.2]} 38. Nxg7 {[%clk
0:02:50.8]} 38... Ne5 {[%clk 0:02:48.5]} 39. Nf5 {[%clk 0:02:46.8]} 39... Nxf3
{[%clk 0:02:46.8]} 40. Nxh6 {[%clk 0:02:45.8]} 40... Ne5 {[%clk 0:02:45.2]} 41.
Kd2 {[%clk 0:02:35]} 41... Ke7 {[%clk 0:02:42.9]} 42. Ke3 {[%clk 0:02:34.5]}
42... Kf8 {[%clk 0:02:41.1]} 43. Ke4 {[%clk 0:02:33]} 43... Kg7 {[%clk
0:02:39.7]} 44. Nf5+ {[%clk 0:02:28.9]} 44... Kf8 {[%clk 0:02:34.3]} 45. h6
{[%clk 0:02:21.3]} 45... Nxg4 {[%clk 0:02:32]} 46. h7 {[%clk 0:02:20]} 46... Nh6
{[%clk 0:02:23.9]} 47. h8=Q+ {[%clk 0:02:18]} 47... Ng8 {[%clk 0:02:20.7]} 48.
Qg7+ {[%clk 0:02:16]} 48... Ke8 {[%clk 0:02:18.8]} 49. Qxg8+ {[%clk 0:02:14.9]}
49... Kd7 {[%clk 0:02:17.8]} 50. Qg7+ {[%clk 0:02:13.7]} 50... Ke6 {[%clk
0:02:16.7]} 51. Qe7# {[%clk 0:02:11.8]} 1-0

[Event "Live Chess"]
[Site "Chess.com"]
[Date "2024.06.02"]
[Round "-"]
[White "DoctorMantisTobogganMD"]
[Black "StoreySniper"]
[Result "0-1"]
[WhiteElo "2227"]
[BlackElo "2498"]
[TimeControl "300"]
[EndTime "7:25:58 PDT"]
[Termination "StoreySniper won on time"]

1. e4 {[%clk 0:04:59.1]} 1... g6 {[%clk 0:04:58.8]} 2. Nc3 {[%clk 0:04:57.7]}
2... Bg7 {[%clk 0:04:58.2]} 3. d4 {[%clk 0:04:56.6]} 3... c5 {[%clk 0:04:57.5]}
4. Nf3 {[%clk 0:04:47.2]} 4... cxd4 {[%clk 0:04:55.5]} 5. Nxd4 {[%clk
0:04:46.3]} 5... Nc6 {[%clk 0:04:55]} 6. Nxc6 {[%clk 0:04:45.4]} 6... bxc6
{[%clk 0:04:53.9]} 7. Bc4 {[%clk 0:04:44.5]} 7... Qa5 {[%clk 0:04:46.2]} 8. Qf3
{[%clk 0:04:39.2]} 8... Nf6 {[%clk 0:04:34.7]} 9. O-O {[%clk 0:04:35.6]} 9...
O-O {[%clk 0:04:25.8]} 10. e5 {[%clk 0:04:31.5]} 10... Qxe5 {[%clk 0:04:20]} 11.
Bf4 {[%clk 0:04:27.9]} 11... Qc5 {[%clk 0:04:13.7]} 12. Bb3 {[%clk 0:04:23.3]}
12... d5 {[%clk 0:04:07.5]} 13. Rfe1 {[%clk 0:04:15.5]} 13... e6 {[%clk
0:04:00.2]} 14. Na4 {[%clk 0:04:06.7]} 14... Qa5 {[%clk 0:03:53.3]} 15. Bd6
{[%clk 0:04:01.5]} 15... Re8 {[%clk 0:03:46.6]} 16. Be5 {[%clk 0:03:29.7]} 16...
Nd7 {[%clk 0:03:33]} 17. Bxg7 {[%clk 0:03:22.2]} 17... Kxg7 {[%clk 0:03:32.1]}
18. Qg3 {[%clk 0:02:54.7]} 18... e5 {[%clk 0:03:19.4]} 19. h4 {[%clk 0:02:43.1]}
19... h5 {[%clk 0:03:16.2]} 20. Rad1 {[%clk 0:02:24.5]} 20... Ba6 {[%clk
0:02:58]} 21. Nc3 {[%clk 0:02:06]} 21... Bb7 {[%clk 0:02:44.2]} 22. f4 {[%clk
0:01:55.4]} 22... exf4 {[%clk 0:02:15.4]} 23. Qxf4 {[%clk 0:01:55.3]} 23... Qc5+
{[%clk 0:01:42.5]} 24. Kh1 {[%clk 0:01:45.5]} 24... Re7 {[%clk 0:01:34]} 25.
Rxe7 {[%clk 0:01:31.4]} 25... Qxe7 {[%clk 0:01:32.4]} 26. Qd4+ {[%clk
0:01:31.1]} 26... Qf6 {[%clk 0:01:25.6]} 27. Qxf6+ {[%clk 0:01:16.4]} 27... Nxf6
{[%clk 0:01:23.7]} 28. Na4 {[%clk 0:01:07.4]} 28... Ne4 {[%clk 0:01:19.6]} 29.
Kg1 {[%clk 0:01:04]} 29... Ba6 {[%clk 0:01:12.4]} 30. c3 {[%clk 0:00:56.6]}
30... Bb5 {[%clk 0:01:03.8]} 31. Bc2 {[%clk 0:00:53]} 31... Re8 {[%clk
0:00:56.9]} 32. Rd4 {[%clk 0:00:51.7]} 32... Nf6 {[%clk 0:00:41]} 33. Bd3 {[%clk
0:00:36.8]} 33... Bxa4 {[%clk 0:00:32.8]} 34. Rxa4 {[%clk 0:00:35.3]} 34... Ng4
{[%clk 0:00:31.7]} 35. g3 {[%clk 0:00:27.2]} 35... Re3 {[%clk 0:00:29.8]} 36.
Ba6 {[%clk 0:00:16.3]} 36... Rxg3+ {[%clk 0:00:29.1]} 37. Kf1 {[%clk 0:00:16.2]}
37... Rh3 {[%clk 0:00:26.5]} 38. Bb7 {[%clk 0:00:14.1]} 38... Rxh4 {[%clk
0:00:26]} 39. Bxc6 {[%clk 0:00:13.2]} 39... Ne3+ {[%clk 0:00:24.3]} 40. Ke2
{[%clk 0:00:12.2]} 40... Rxa4 {[%clk 0:00:23.7]} 41. Kxe3 {[%clk 0:00:11.2]}
41... Rxa2 {[%clk 0:00:22.2]} 42. b4 {[%clk 0:00:10.7]} 42... Ra3 {[%clk
0:00:20.1]} 43. Kd4 {[%clk 0:00:09.9]} 43... h4 {[%clk 0:00:19.2]} 44. Bxd5
{[%clk 0:00:09.3]} 44... h3 {[%clk 0:00:18.5]} 45. c4 {[%clk 0:00:08.5]} 45...
h2 {[%clk 0:00:17.8]} 46. c5 {[%clk 0:00:07.7]} 46... Ra1 {[%clk 0:00:17.1]} 47.
Bg2 {[%clk 0:00:05.1]} 47... Rg1 {[%clk 0:00:15.7]} 48. Bf3 {[%clk 0:00:03.6]}
48... Rg3 {[%clk 0:00:14.8]} 49. Bh1 {[%clk 0:00:02.7]} 49... Rg1 {[%clk
0:00:13.7]} 50. Bc6 {[%clk 0:00:02.6]} 50... Rd1+ {[%clk 0:00:13]} 51. Kc4
{[%clk 0:00:01.8]} 51... Rc1+ {[%clk 0:00:12.5]} 52. Kb5 {[%clk 0:00:01.7]}
52... Rb1 {[%clk 0:00:11.9]} 0-1

[Event "Live Chess"]
[Site "Chess.com"]
[Date "2024.06.02"]
[Round "-"]
[White "AndyJWise"]
[Black "agamilewska"]
[Result "0-1"]
[WhiteElo "1045"]
[BlackElo "1754"]
[TimeControl "300"]
[EndTime "7:25:58 PDT"]
[Termination "agamilewska won by resignation"]

1. d4 {[%clk 0:04:56.3]} 1... d5 {[%clk 0:04:59.2]} 2. c4 {[%clk 0:04:54.7]}
2... Nf6 {[%clk 0:04:58.4]} 3. Nc3 {[%clk 0:04:52.9]} 3... e6 {[%clk 0:04:57.2]}
4. Bg5 {[%clk 0:04:50.3]} 4... dxc4 {[%clk 0:04:55.1]} 5. e4 {[%clk 0:04:48.2]}
5... Be7 {[%clk 0:04:54.5]} 6. Bxc4 {[%clk 0:04:45.9]} 6... h6 {[%clk
0:04:52.6]} 7. Bh4 {[%clk 0:04:36.8]} 7... O-O {[%clk 0:04:51.3]} 8. Nf3 {[%clk
0:04:32.7]} 8... Nc6 {[%clk 0:04:49.1]} 9. O-O {[%clk 0:04:30]} 9... b6 {[%clk
0:04:48.5]} 10. Bxf6 {[%clk 0:04:04.5]} 10... Bxf6 {[%clk 0:04:46.2]} 11. e5
{[%clk 0:04:03.8]} 11... Bg5 {[%clk 0:04:40.6]} 12. h4 {[%clk 0:03:58.6]} 12...
Bxh4 {[%clk 0:04:37]} 13. Nxh4 {[%clk 0:03:56.5]} 13... Qxh4 {[%clk 0:04:36.3]}
14. Rc1 {[%clk 0:03:39.9]} 14... Qxd4 {[%clk 0:04:34.1]} 15. Qxd4 {[%clk
0:03:36.6]} 15... Nxd4 {[%clk 0:04:33.5]} 16. Nb5 {[%clk 0:03:33.3]} 16... c5
{[%clk 0:04:31.4]} 17. Nc7 {[%clk 0:03:29.8]} 17... Rb8 {[%clk 0:04:30.3]} 18.
f4 {[%clk 0:03:17.2]} 18... Bb7 {[%clk 0:04:28.3]} 19. Rcd1 {[%clk 0:03:09.3]}
19... Rfc8 {[%clk 0:04:26.4]} 20. Nb5 {[%clk 0:03:07.1]} 20... Nxb5 {[%clk
0:04:20.7]} 21. Bxb5 {[%clk 0:03:06]} 21... Bd5 {[%clk 0:04:19.8]} 22. a3 {[%clk
0:03:03.1]} 22... a5 {[%clk 0:04:17.5]} 23. f5 {[%clk 0:02:53.7]} 23... c4
{[%clk 0:04:10.8]} 24. fxe6 {[%clk 0:02:51.6]} 24... fxe6 {[%clk 0:04:09.7]} 25.
Kf2 {[%clk 0:02:39.5]} 25... Rc5 {[%clk 0:04:08.8]} 26. a4 {[%clk 0:02:37.4]}
26... c3 {[%clk 0:04:07.9]} 27. bxc3 {[%clk 0:02:35.6]} 27... Rxc3 {[%clk
0:04:06.8]} 28. Rd3 {[%clk 0:02:32.5]} 28... Rf8+ {[%clk 0:04:02.9]} 29. Ke3
{[%clk 0:02:30.9]} 29... Rxd3+ {[%clk 0:04:00.4]} 30. Kxd3 {[%clk 0:02:28.1]}
30... Rxf1 {[%clk 0:03:57.3]} 0-1

[Event "Live Chess"]
[Site "Chess.com"]
[Date "2024.06.02"]
[Round "-"]
[White "davigator"]
[Black "raimundklein"]
[Result "0-1"]
[WhiteElo "2333"]
[BlackElo "1580"]
[TimeControl "300"]
[EndTime "7:26:16 PDT"]
[Termination "raimundklein won by checkmate"]

1. e4 {[%clk 0:04:56.9]} 1... c6 {[%clk 0:04:58]} 2. d4 {[%clk 0:04:55.1]} 2...
d5 {[%clk 0:04:57.1]} 3. e5 {[%clk 0:04:54.3]} 3... Bf5 {[%clk 0:04:55.5]} 4.
Nf3 {[%clk 0:04:53.4]} 4... e6 {[%clk 0:04:54.6]} 5. Be2 {[%clk 0:04:52.8]} 5...
Nd7 {[%clk 0:04:52.4]} 6. O-O {[%clk 0:04:50.7]} 6... Ne7 {[%clk 0:04:47.1]} 7.
Be3 {[%clk 0:04:49.8]} 7... Bg6 {[%clk 0:04:43.1]} 8. Nbd2 {[%clk 0:04:48.8]}
8... Nf5 {[%clk 0:04:41.4]} 9. c3 {[%clk 0:04:48]} 9... c5 {[%clk 0:04:35.1]}
10. a3 {[%clk 0:04:32.7]} 10... Be7 {[%clk 0:04:31.5]} 11. b4 {[%clk 0:04:31.2]}
11... b6 {[%clk 0:04:30]} 12. Nb3 {[%clk 0:04:16.5]} 12... O-O {[%clk 0:04:05]}
13. Bb5 {[%clk 0:04:02.9]} 13... a6 {[%clk 0:03:29]} 14. Bxd7 {[%clk 0:04:00.6]}
14... Qxd7 {[%clk 0:03:28.9]} 15. bxc5 {[%clk 0:03:59.9]} 15... Nxe3 {[%clk
0:03:18.7]} 16. fxe3 {[%clk 0:03:58.1]} 16... bxc5 {[%clk 0:03:17.2]} 17. dxc5
{[%clk 0:03:55.7]} 17... Qc7 {[%clk 0:03:10.8]} 18. Qd4 {[%clk 0:03:53.7]} 18...
a5 {[%clk 0:03:00.7]} 19. a4 {[%clk 0:03:51]} 19... Rab8 {[%clk 0:02:55.3]} 20.
Nfd2 {[%clk 0:03:49.8]} 20... Bc2 {[%clk 0:02:47.6]} 21. Ra3 {[%clk 0:03:47.3]}
21... Rb7 {[%clk 0:02:36.9]} 22. Rc1 {[%clk 0:03:46]} 22... Bg6 {[%clk
0:02:33.7]} 23. c4 {[%clk 0:03:42]} 23... dxc4 {[%clk 0:02:27.9]} 24. Nxc4
{[%clk 0:03:39.9]} 24... Ra8 {[%clk 0:02:22.9]} 25. Nd6 {[%clk 0:03:36.8]} 25...
Rb4 {[%clk 0:02:20.4]} 26. Qc3 {[%clk 0:03:32.8]} 26... Rg4 {[%clk 0:01:55.5]}
27. Ra2 {[%clk 0:03:23.9]} 27... h5 {[%clk 0:01:27.4]} 28. Nd4 {[%clk
0:03:17.2]} 28... h4 {[%clk 0:01:19]} 29. N4b5 {[%clk 0:02:57.6]} 29... Qc6
{[%clk 0:01:18]} 30. Nd4 {[%clk 0:02:56.7]} 30... Qd5 {[%clk 0:01:10.7]} 31. Rd2
{[%clk 0:02:55.6]} 31... h3 {[%clk 0:01:04.1]} 32. g3 {[%clk 0:02:52.1]} 32...
Qxe5 {[%clk 0:00:32.4]} 33. Nc6 {[%clk 0:02:49.5]} 33... Rxg3+ {[%clk
0:00:31.3]} 34. hxg3 {[%clk 0:02:41.5]} 34... Qxg3+ {[%clk 0:00:30.9]} 35. Kf1
{[%clk 0:02:40.1]} 35... h2 {[%clk 0:00:25.1]} 36. Nxe7+ {[%clk 0:02:38.7]}
36... Kh7 {[%clk 0:00:23]} 37. Rxh2+ {[%clk 0:02:37.1]} 37... Qxh2 {[%clk
0:00:21.7]} 38. Nxg6 {[%clk 0:02:36.1]} 38... fxg6 {[%clk 0:00:19.7]} 39. Ke1
{[%clk 0:02:22.5]} 39... Rf8 {[%clk 0:00:18.2]} 40. Rc2 {[%clk 0:01:51.9]} 40...
Qg1+ {[%clk 0:00:13.9]} 41. Kd2 {[%clk 0:01:50.6]} 41... Rf2+ {[%clk 0:00:12.5]}
42. Kd3 {[%clk 0:01:49.9]} 42... Qf1+ {[%clk 0:00:10.5]} 43. Kd4 {[%clk
0:01:47.4]} 43... Qd1+ {[%clk 0:00:08.3]} 44. Ke5 {[%clk 0:01:43.8]} 44... Qd5#
{[%clk 0:00:06.9]} 0-1

[Event "Live Chess"]
[Site "Chess.com"]
[Date "2024.06.02"]
[Round "-"]
[White "Larchikov"]
[Black "beltmanjb"]
[Result "1-0"]
[WhiteElo "2118"]
[BlackElo "1683"]
[TimeControl "300"]
[EndTime "7:26:17 PDT"]
[Termination "Larchikov won by resignation"]

1. e4 {[%clk 0:04:58.1]} 1... c5 {[%clk 0:04:58.9]} 2. f4 {[%clk 0:04:56.8]}
2... d5 {[%clk 0:04:57.3]} 3. exd5 {[%clk 0:04:55.7]} 3... Nf6 {[%clk
0:04:56.1]} 4. Nf3 {[%clk 0:04:53.3]} 4... Nxd5 {[%clk 0:04:44.6]} 5. Bc4 {[%clk
0:04:47.2]} 5... e6 {[%clk 0:04:39.3]} 6. O-O {[%clk 0:04:45.8]} 6... Bd6 {[%clk
0:04:34.6]} 7. d3 {[%clk 0:04:38]} 7... O-O {[%clk 0:04:32.2]} 8. Ng5 {[%clk
0:04:29.9]} 8... h6 {[%clk 0:04:17.8]} 9. Ne4 {[%clk 0:04:28.7]} 9... Be7 {[%clk
0:04:04.7]} 10. Nbc3 {[%clk 0:04:24.3]} 10... a6 {[%clk 0:04:02.4]} 11. a4
{[%clk 0:04:22.9]} 11... Nb6 {[%clk 0:03:53.7]} 12. Bb3 {[%clk 0:04:17.9]} 12...
N8d7 {[%clk 0:03:52.3]} 13. a5 {[%clk 0:04:15.6]} 13... Nd5 {[%clk 0:03:40.9]}
14. Nxd5 {[%clk 0:04:14.3]} 14... exd5 {[%clk 0:03:40.1]} 15. Bxd5 {[%clk
0:04:13.9]} 15... Nf6 {[%clk 0:03:38.5]} 16. Nxf6+ {[%clk 0:04:12.2]} 16... Bxf6
{[%clk 0:03:37.1]} 17. Be4 {[%clk 0:04:09.9]} 17... Qc7 {[%clk 0:03:32.3]} 18.
c3 {[%clk 0:04:07.2]} 18... Be6 {[%clk 0:03:29.4]} 19. Qf3 {[%clk 0:04:04.4]}
19... Rab8 {[%clk 0:03:24.5]} 20. f5 {[%clk 0:04:02.5]} 20... Bd7 {[%clk
0:03:22.3]} 21. Bf4 {[%clk 0:03:59.7]} 21... Be5 {[%clk 0:03:18.3]} 22. Qg3
{[%clk 0:03:57.9]} 22... Bxf4 {[%clk 0:03:16.7]} 23. Qxf4 {[%clk 0:03:57.8]}
23... Qxf4 {[%clk 0:03:05.9]} 24. Rxf4 {[%clk 0:03:57.7]} 24... Rfe8 {[%clk
0:03:04.5]} 25. Rf2 {[%clk 0:03:50.1]} 25... b6 {[%clk 0:02:58.1]} 26. axb6
{[%clk 0:03:46.9]} 26... Rxb6 {[%clk 0:02:57.2]} 27. Bd5 {[%clk 0:03:43.1]}
27... Rf6 {[%clk 0:02:53.1]} 28. g4 {[%clk 0:03:38.9]} 28... h5 {[%clk
0:02:46.7]} 29. h3 {[%clk 0:03:36.8]} 29... Re3 {[%clk 0:02:43.2]} 30. Kg2
{[%clk 0:03:34.9]} 30... Rxd3 {[%clk 0:02:41.6]} 31. Bc4 {[%clk 0:03:31.4]}
31... Rdd6 {[%clk 0:02:40.4]} 32. Raf1 {[%clk 0:03:22.6]} 32... Bb5 {[%clk
0:02:29]} 33. Bxb5 {[%clk 0:03:19.9]} 33... axb5 {[%clk 0:02:27.7]} 34. g5
{[%clk 0:03:19.6]} 1-0

[Event "Live Chess"]
[Site "Chess.com"]
[Date "2024.06.02"]
[Round "-"]
[White "ivan_1968"]
[Black "MagnersCarlsberg2870"]
[Result "1-0"]
[WhiteElo "1831"]
[BlackElo "1775"]
[TimeControl "300"]
[EndTime "7:26:20 PDT"]
[Termination "ivan_1968 won by resignation"]

1. d4 {[%clk 0:04:56.3]} 1... Nf6 {[%clk 0:04:58.1]} 2. c4 {[%clk 0:04:55.4]}
2... e5 {[%clk 0:04:55.8]} 3. dxe5 {[%clk 0:04:54.2]} 3... Ng4 {[%clk
0:04:54.7]} 4. Bf4 {[%clk 0:04:52.1]} 4... Nc6 {[%clk 0:04:53.2]} 5. Nf3 {[%clk
0:04:51]} 5... Bb4+ {[%clk 0:04:51.9]} 6. Nbd2 {[%clk 0:04:49.9]} 6... Qe7
{[%clk 0:04:50.9]} 7. e3 {[%clk 0:04:48.5]} 7... Ngxe5 {[%clk 0:04:49]} 8. Nxe5
{[%clk 0:04:47.6]} 8... Nxe5 {[%clk 0:04:46.3]} 9. Be2 {[%clk 0:04:46.8]} 9...
g5 {[%clk 0:04:39]} 10. Bg3 {[%clk 0:04:32.4]} 10... h5 {[%clk 0:04:37.6]} 11.
h4 {[%clk 0:04:26.6]} 11... g4 {[%clk 0:04:33.1]} 12. a3 {[%clk 0:04:22.8]}
12... Bxd2+ {[%clk 0:04:31.1]} 13. Qxd2 {[%clk 0:04:21.2]} 13... d6 {[%clk
0:04:28.9]} 14. Qc3 {[%clk 0:04:14]} 14... Bf5 {[%clk 0:04:26.4]} 15. c5 {[%clk
0:04:04.1]} 15... O-O-O {[%clk 0:04:24.6]} 16. cxd6 {[%clk 0:04:02.3]} 1-0

[Event "Live Chess"]
[Site "Chess.com"]
[Date "2024.06.02"]
[Round "-"]
[White "TigerTank70"]
[Black "Ferrarifan27"]
[Result "1/2-1/2"]
[WhiteElo "2188"]
[BlackElo "2138"]
[TimeControl "300"]
[EndTime "7:26:43 PDT"]
[Termination "Game drawn by repetition"]

1. e4 {[%clk 0:04:58.1]} 1... e5 {[%clk 0:04:58.3]} 2. Nf3 {[%clk 0:04:56.1]}
2... Nc6 {[%clk 0:04:57.5]} 3. Bc4 {[%clk 0:04:55.3]} 3... Bc5 {[%clk 0:04:55]}
4. b4 {[%clk 0:04:53.3]} 4... Bxb4 {[%clk 0:04:52.4]} 5. c3 {[%clk 0:04:52.5]}
5... Ba5 {[%clk 0:04:49.8]} 6. O-O {[%clk 0:04:50]} 6... d6 {[%clk 0:04:46.9]}
7. d4 {[%clk 0:04:48.1]} 7... exd4 {[%clk 0:04:46.1]} 8. cxd4 {[%clk 0:04:44.9]}
8... Bd7 {[%clk 0:04:42.1]} 9. Qb3 {[%clk 0:04:41.4]} 9... Qf6 {[%clk
0:04:37.8]} 10. Bg5 {[%clk 0:04:31.5]} 10... Qg6 {[%clk 0:04:36.4]} 11. d5
{[%clk 0:04:12]} 11... Ne5 {[%clk 0:04:29.1]} 12. Nxe5 {[%clk 0:04:06]} 12...
dxe5 {[%clk 0:04:25.8]} 13. Qxb7 {[%clk 0:04:03.5]} 13... Qxg5 {[%clk
0:04:08.1]} 14. Qxa8+ {[%clk 0:03:59.4]} 14... Ke7 {[%clk 0:04:07.4]} 15. d6+
{[%clk 0:03:47.6]} 15... cxd6 {[%clk 0:04:02.6]} 16. Qd5 {[%clk 0:03:44.7]}
16... Nh6 {[%clk 0:03:55.3]} 17. f4 {[%clk 0:03:36.8]} 17... Bb6+ {[%clk
0:03:45]} 18. Kh1 {[%clk 0:03:33.6]} 18... Qh5 {[%clk 0:03:33.4]} 19. fxe5
{[%clk 0:03:17.4]} 19... dxe5 {[%clk 0:03:32.4]} 20. Nd2 {[%clk 0:03:08.8]}
20... Rd8 {[%clk 0:03:28]} 21. Qb7 {[%clk 0:02:28.7]} 21... f6 {[%clk
0:03:09.8]} 22. Nf3 {[%clk 0:02:23]} 22... Ng4 {[%clk 0:03:02.9]} 23. Rad1
{[%clk 0:02:17.5]} 23... Ne3 {[%clk 0:02:55.6]} 24. Bb5 {[%clk 0:02:05.2]} 24...
Nxd1 {[%clk 0:02:51.2]} 25. Rxd1 {[%clk 0:02:02.6]} 25... Qg4 {[%clk 0:02:38.6]}
26. Bc4 {[%clk 0:01:39.9]} 26... Ke8 {[%clk 0:02:00]} 27. Qd5 {[%clk 0:01:28.7]}
27... Be6 {[%clk 0:01:42.1]} 28. Qc6+ {[%clk 0:01:26.7]} 28... Bd7 {[%clk
0:01:36.2]} 29. Qd5 {[%clk 0:01:23.9]} 29... Be6 {[%clk 0:01:34.8]} 30. Qc6+
{[%clk 0:01:21.8]} 30... Bd7 {[%clk 0:01:33.8]} 31. Qd5 {[%clk 0:01:20.6]}
1/2-1/2

[Event "Live Chess"]
[Site "Chess.com"]
[Date "2024.06.02"]
[Round "-"]
[White "Purple1szed"]
[Black "kylet1990"]
[Result "1-0"]
[WhiteElo "2002"]
[BlackElo "750"]
[TimeControl "300"]
[EndTime "7:26:45 PDT"]
[Termination "Purple1szed won by resignation"]

1. e4 {[%clk 0:04:58.7]} 1... c6 {[%clk 0:04:58.1]} 2. d4 {[%clk 0:04:57.9]}
2... d5 {[%clk 0:04:56.9]} 3. e5 {[%clk 0:04:57.5]} 3... Bf5 {[%clk 0:04:55.9]}
4. h4 {[%clk 0:04:56.7]} 4... e6 {[%clk 0:04:54.3]} 5. g4 {[%clk 0:04:55.5]}
5... Qa5+ {[%clk 0:04:36.7]} 6. Bd2 {[%clk 0:04:50]} 6... Qxd2+ {[%clk
0:04:34.4]} 7. Qxd2 {[%clk 0:04:47.6]} 7... Bxc2 {[%clk 0:04:33.6]} 8. Qxc2
{[%clk 0:04:47.5]} 8... Ba3 {[%clk 0:04:31.6]} 9. Nxa3 {[%clk 0:04:46]} 9... Nf6
{[%clk 0:04:30.5]} 10. exf6 {[%clk 0:04:44.8]} 10... g6 {[%clk 0:04:26.2]} 11.
h5 {[%clk 0:04:42.8]} 1-0